[Event "Nové Hrady - Open"]
[Site "Nové Hrady, Czech Republic"]
[Date "2024.08.14"]
[Round "4.6"]
[White "Šťastná, Martina"]
[Black "Černý, Zbyšek"]
[Result "1-0"]
[TimeControl "2x90min+30s"]
[WhiteFideId "385123"]
[BlackFideId "23739380"]
[WhiteElo "1945"]
[BlackElo "1582"]

1. e4 {[%clk 01:30:57]} {[%emt 00:00:03]} c5 {[%clk 01:30:47]} {[%emt
00:00:14]} 2. Nf3 {[%clk 01:31:18]} {[%emt 00:00:08]} e6 {[%clk 01:31:11]}
{[%emt 00:00:07]} 3. g3 {[%clk 01:31:12]} {[%emt 00:00:35]} a6 {[%clk
01:31:08]} {[%emt 00:00:34]} 4. Bg2 {[%clk 01:31:28]} {[%emt 00:00:13]} d6
{[%clk 01:30:59]} {[%emt 00:00:40]} 5. O-O {[%clk 01:31:08]} {[%emt 00:00:50]}
Nf6 {[%clk 01:30:44]} {[%emt 00:00:45]} 6. Nc3 {[%clk 01:27:20]} {[%emt
00:04:17]} Be7 {[%clk 01:30:47]} {[%emt 00:00:28]} 7. e5 {[%clk 01:24:18]}
{[%emt 00:03:31]} dxe5 {[%clk 01:29:00]} {[%emt 00:02:16]} 8. Nxe5 {[%clk
01:24:17]} {[%emt 00:00:33]} O-O {[%clk 01:28:54]} {[%emt 00:00:36]} 9. b3
{[%clk 01:16:30]} {[%emt 00:08:17]} Qc7 {[%clk 01:26:20]} {[%emt 00:03:03]} 10.
Qe2 {[%clk 01:15:03]} {[%emt 00:01:56]} Nbd7 {[%clk 01:23:27]} {[%emt
00:03:25]} 11. Nc4 {[%clk 01:11:39]} {[%emt 00:03:53]} Rb8 {[%clk 01:19:34]}
{[%emt 00:04:24]} 12. d3 {[%clk 01:04:11]} {[%emt 00:07:57]} b5 {[%clk
01:18:35]} {[%emt 00:01:31]} 13. Bf4 {[%clk 01:02:43]} {[%emt 00:01:56]} e5
{[%clk 01:16:06]} {[%emt 00:02:59]} 14. Nxe5 {[%clk 01:01:34]} {[%emt
00:01:39]} Bd6 {[%clk 01:14:07]} {[%emt 00:02:30]} 15. Nxd7 {[%clk 00:56:39]}
{[%emt 00:05:26]} Bxd7 {[%clk 01:14:19]} {[%emt 00:00:17]} 16. Bxd6 {[%clk
00:52:49]} {[%emt 00:04:20]} Qxd6 {[%clk 01:13:18]} {[%emt 00:01:30]} 17. Rfe1
{[%clk 00:50:26]} {[%emt 00:02:54]} Rfe8 {[%clk 01:11:13]} {[%emt 00:02:35]} 18.
Ne4 {[%clk 00:41:30]} {[%emt 00:09:26]} Nxe4 {[%clk 01:10:32]} {[%emt
00:01:10]} 19. dxe4 {[%clk 00:41:51]} {[%emt 00:00:09]} Re7 {[%clk 01:10:11]}
{[%emt 00:00:52]} 20. Rad1 {[%clk 00:39:41]} {[%emt 00:02:39]} Qc7 {[%clk
01:10:18]} {[%emt 00:00:22]} 21. Qd2 {[%clk 00:38:08]} {[%emt 00:02:04]} Rbe8
{[%clk 01:09:36]} {[%emt 00:01:12]} 22. Qd6 {[%clk 00:32:06]} {[%emt 00:06:31]}
Qa7 {[%clk 01:06:28]} {[%emt 00:03:39]} 23. Re3 {[%clk 00:26:11]} {[%emt
00:06:25]} Bg4 {[%clk 01:05:36]} {[%emt 00:01:22]} 24. f3 {[%clk 00:23:50]}
{[%emt 00:02:52]} Rd7 {[%clk 01:05:24]} {[%emt 00:00:42]} 25. fxg4 {[%clk
00:22:26]} {[%emt 00:01:53]} Rxd6 {[%clk 01:05:24]} {[%emt 00:00:30]} 26. Rxd6
{[%clk 00:22:50]} {[%emt 00:00:07]} c4 {[%clk 01:04:51]} {[%emt 00:01:03]} 27.
Kf2 {[%clk 00:23:12]} {[%emt 00:00:07]} h6 {[%clk 01:03:27]} {[%emt 00:01:55]}
28. Ke2 {[%clk 00:22:00]} {[%emt 00:01:40]} Re6 {[%clk 01:02:51]} {[%emt
00:01:07]} 29. Rd8+ {[%clk 00:20:09]} {[%emt 00:02:22]} Kh7 {[%clk 01:03:13]}
{[%emt 00:00:08]} 30. h4 {[%clk 00:20:19]} {[%emt 00:00:19]} Qc7 {[%clk
01:00:47]} {[%emt 00:02:56]} 31. Rd5 {[%clk 00:17:01]} {[%emt 00:03:48]} Qa5
{[%clk 00:57:58]} {[%emt 00:03:19]} 32. a4 {[%clk 00:14:59]} {[%emt 00:02:33]}
cxb3 {[%clk 00:57:00]} {[%emt 00:01:28]} 33. cxb3 {[%clk 00:15:05]} {[%emt
00:00:23]} Rc6 {[%clk 00:56:49]} {[%emt 00:00:41]} 34. e5 {[%clk 00:13:49]}
{[%emt 00:01:53]} Rc2+ {[%clk 00:56:40]} {[%emt 00:00:32]} 35. Kf1 {[%clk
00:14:13]} {[%emt 00:00:05]} Qb4 {[%clk 00:56:11]} {[%emt 00:00:58]} 36. Be4+
{[%clk 00:14:17]} {[%emt 00:00:28]} g6 {[%clk 00:55:02]} {[%emt 00:01:39]} 37.
Bxc2 {[%clk 00:14:41]} {[%emt 00:00:06]} bxa4 {[%clk 00:55:04]} {[%emt
00:00:29]} 38. e6 {[%clk 00:10:37]} {[%emt 00:04:33]} fxe6 {[%clk 00:55:00]}
{[%emt 00:00:35]} 39. Rxe6 {[%clk 00:10:37]} {[%emt 00:00:30]} Qf8+ {[%clk
00:54:01]} {[%emt 00:01:28]} 40. Kg1 {[%clk 00:10:49]} {[%emt 00:00:18]} axb3
{[%clk 00:53:52]} {[%emt 00:00:39]} 41. Bxg6+ {[%clk 00:10:20]} {[%emt
00:00:59]} Kg7 {[%clk 00:54:00]} {[%emt 00:00:22]} 42. Rd7+ {[%clk 00:10:44]}
{[%emt 00:00:06]} 1-0

[Event "Nové Hrady - Open"]
[Site "Nové Hrady, Czech Republic"]
[Date "2024.08.14"]
[Round "4.7"]
[White "Mácová, Markéta"]
[Black "Rendl, Luboš"]
[Result "0-1"]
[TimeControl "2x90min+30s"]
[WhiteFideId "23715588"]
[BlackFideId "23750197"]
[WhiteElo "1567"]
[BlackElo "1848"]

1. e4 {[%clk 01:30:57]} {[%emt 00:00:03]} c5 {[%clk 01:30:50]} {[%emt
00:00:11]} 2. Nf3 {[%clk 01:31:19]} {[%emt 00:00:08]} Nc6 {[%clk 01:31:08]}
{[%emt 00:00:12]} 3. d4 {[%clk 01:31:40]} {[%emt 00:00:09]} cxd4 {[%clk
01:31:31]} {[%emt 00:00:07]} 4. Nxd4 {[%clk 01:32:03]} {[%emt 00:00:06]} e6
{[%clk 01:31:56]} {[%emt 00:00:05]} 5. Nc3 {[%clk 01:30:32]} {[%emt 00:02:01]}
Qc7 {[%clk 01:32:18]} {[%emt 00:00:08]} 6. Be3 {[%clk 01:29:27]} {[%emt
00:01:35]} a6 {[%clk 01:32:39]} {[%emt 00:00:10]} 7. Be2 {[%clk 01:29:04]}
{[%emt 00:00:52]} b5 {[%clk 01:30:44]} {[%emt 00:02:26]} 8. a3 {[%clk
01:28:07]} {[%emt 00:01:26]} Bb7 {[%clk 01:31:04]} {[%emt 00:00:10]} 9. Bf3
{[%clk 01:27:32]} {[%emt 00:01:04]} Nf6 {[%clk 01:26:38]} {[%emt 00:04:57]} 10.
O-O {[%clk 01:26:57]} {[%emt 00:01:05]} Be7 {[%clk 01:25:44]} {[%emt 00:01:25]}
11. Qd2 {[%clk 01:25:14]} {[%emt 00:02:11]} Ne5 {[%clk 01:23:39]} {[%emt
00:02:36]} 12. Bf4 {[%clk 01:23:49]} {[%emt 00:01:55]} O-O {[%clk 01:18:53]}
{[%emt 00:05:17]} 13. Rfe1 {[%clk 01:22:08]} {[%emt 00:02:09]} Bd6 {[%clk
01:18:21]} {[%emt 00:01:02]} 14. Bxe5 {[%clk 01:21:21]} {[%emt 00:01:17]} Bxe5
{[%clk 01:17:53]} {[%emt 00:00:59]} 15. g3 {[%clk 01:20:26]} {[%emt 00:01:25]}
Rac8 {[%clk 01:17:29]} {[%emt 00:00:55]} 16. Rad1 {[%clk 01:19:10]} {[%emt
00:01:45]} Qb6 {[%clk 01:10:40]} {[%emt 00:07:20]} 17. Re3 {[%clk 01:12:09]}
{[%emt 00:07:30]} Rc4 {[%clk 01:10:07]} {[%emt 00:01:03]} 18. Nb3 {[%clk
01:09:53]} {[%emt 00:02:46]} Rfc8 {[%clk 01:09:24]} {[%emt 00:01:14]} 19. Be2
{[%clk 01:06:33]} {[%emt 00:03:49]} Bxc3 {[%clk 01:03:14]} {[%emt 00:06:40]} 20.
bxc3 {[%clk 01:05:26]} {[%emt 00:01:36]} Rxe4 {[%clk 01:01:11]} {[%emt
00:02:35]} 21. Rxe4 {[%clk 01:04:32]} {[%emt 00:01:23]} Nxe4 {[%clk 01:01:32]}
{[%emt 00:00:09]} 22. Qf4 {[%clk 00:59:56]} {[%emt 00:05:05]} Nxc3 {[%clk
01:00:39]} {[%emt 00:01:24]} 23. Rd2 {[%clk 00:59:12]} {[%emt 00:01:13]} Qc6
{[%clk 01:00:48]} {[%emt 00:00:22]} 24. f3 {[%clk 00:58:22]} {[%emt 00:01:19]}
Nxe2+ {[%clk 01:00:30]} {[%emt 00:00:49]} 25. Rxe2 {[%clk 00:58:39]} {[%emt
00:00:13]} Qxf3 {[%clk 00:59:22]} {[%emt 00:01:38]} 26. Qxf3 {[%clk 00:57:38]}
{[%emt 00:01:30]} Bxf3 {[%clk 00:59:49]} {[%emt 00:00:04]} 27. Rd2 {[%clk
00:57:46]} {[%emt 00:00:22]} d5 {[%clk 00:59:52]} {[%emt 00:00:28]} 28. Nd4
{[%clk 00:57:22]} {[%emt 00:00:52]} Be4 {[%clk 00:59:15]} {[%emt 00:01:08]} 29.
Kf2 {[%clk 00:57:26]} {[%emt 00:00:25]} Rc3 {[%clk 00:59:14]} {[%emt 00:00:32]}
30. Nb3 {[%clk 00:55:47]} {[%emt 00:02:09]} Bxc2 {[%clk 00:58:24]} {[%emt
00:01:20]} 31. Nd4 {[%clk 00:55:47]} {[%emt 00:00:30]} Be4 {[%clk 00:58:42]}
{[%emt 00:00:12]} 32. Ra2 {[%clk 00:56:00]} {[%emt 00:00:17]} Kf8 {[%clk
00:58:38]} {[%emt 00:00:34]} 0-1

[Event "Nové Hrady - Open"]
[Site "Nové Hrady, Czech Republic"]
[Date "2024.08.14"]
[Round "4.8"]
[White "Šebesta, Marek"]
[Black "Junek, Petr"]
[Result "1-0"]
[TimeControl "2x90min+30s"]
[WhiteFideId "23765119"]
[BlackFideId "23739282"]
[WhiteElo "1495"]
[BlackElo "1775"]

1. e4 {[%clk 01:30:59]} {[%emt 00:49:03]} c5 {[%clk 01:30:54]} {[%emt
00:00:06]} 2. Nf3 {[%clk 01:31:24]} {[%emt 00:00:04]} Nc6 {[%clk 01:31:11]}
{[%emt 00:00:13]} 3. d4 {[%clk 01:31:45]} {[%emt 00:00:10]} cxd4 {[%clk
01:31:37]} {[%emt 00:00:05]} 4. Nxd4 {[%clk 01:32:10]} {[%emt 00:00:04]} Nf6
{[%clk 01:32:01]} {[%emt 00:00:07]} 5. Nc3 {[%clk 01:32:32]} {[%emt 00:00:07]}
e5 {[%clk 01:32:16]} {[%emt 00:00:15]} 6. Ndb5 {[%clk 01:32:42]} {[%emt
00:00:20]} d6 {[%clk 01:32:34]} {[%emt 00:00:12]} 7. Nd5 {[%clk 01:32:55]}
{[%emt 00:00:17]} Nxd5 {[%clk 01:32:42]} {[%emt 00:00:22]} 8. exd5 {[%clk
01:33:03]} {[%emt 00:00:22]} Nb8 {[%clk 01:33:02]} {[%emt 00:00:10]} 9. c4
{[%clk 01:32:24]} {[%emt 00:01:08]} Be7 {[%clk 01:32:41]} {[%emt 00:00:52]} 10.
Be2 {[%clk 01:29:06]} {[%emt 00:03:48]} a6 {[%clk 01:30:20]} {[%emt 00:02:51]}
11. Nc3 {[%clk 01:26:37]} {[%emt 00:03:00]} f5 {[%clk 01:29:22]} {[%emt
00:01:27]} 12. f4 {[%clk 01:22:26]} {[%emt 00:04:41]} Bf6 {[%clk 01:28:45]}
{[%emt 00:01:06]} 13. O-O {[%clk 01:18:35]} {[%emt 00:04:22]} O-O {[%clk
01:29:09]} {[%emt 00:00:06]} 14. Kh1 {[%clk 01:13:32]} {[%emt 00:05:32]} Nd7
{[%clk 01:26:50]} {[%emt 00:02:49]} 15. Qc2 {[%clk 01:11:47]} {[%emt 00:02:16]}
e4 {[%clk 01:21:44]} {[%emt 00:05:36]} 16. Be3 {[%clk 01:08:31]} {[%emt
00:03:45]} Qc7 {[%clk 01:17:13]} {[%emt 00:05:01]} 17. Rac1 {[%clk 01:02:32]}
{[%emt 00:06:30]} b6 {[%clk 01:10:58]} {[%emt 00:06:45]} 18. b4 {[%clk
00:57:33]} {[%emt 00:05:29]} Bb7 {[%clk 01:02:57]} {[%emt 00:08:30]} 19. c5
{[%emt 00:10:46]} Bxc3 {[%clk 00:41:51]} {[%emt 00:21:34]} 20. Qxc3 {[%clk
00:47:16]} {[%emt 00:00:33]} bxc5 {[%clk 00:40:13]} {[%emt 00:02:08]} 21. bxc5
{[%clk 00:46:36]} {[%emt 00:01:10]} Bxd5 {[%clk 00:34:03]} {[%emt 00:06:41]} 22.
Rfd1 {[%clk 00:28:42]} {[%emt 00:18:24]} Bxa2 {[%clk 00:28:13]} {[%emt
00:06:18]} 23. Qa3 {[%clk 00:27:20]} {[%emt 00:01:53]} Be6 {[%clk 00:24:16]}
{[%emt 00:04:27]} 24. Rxd6 {[%clk 00:26:19]} {[%emt 00:01:31]} Rf6 {[%clk
00:23:28]} {[%emt 00:01:18]} 25. c6 {[%clk 00:20:33]} {[%emt 00:06:17]} Nf8
{[%clk 00:17:21]} {[%emt 00:06:36]} 26. Qb4 {[%clk 00:15:14]} {[%emt 00:05:49]}
Rb8 {[%clk 00:16:28]} {[%emt 00:01:23]} 27. Qa3 {[%clk 00:11:17]} {[%emt
00:04:26]} Rb3 {[%clk 00:15:59]} {[%emt 00:01:00]} 28. Qc5 {[%clk 00:07:56]}
{[%emt 00:03:52]} Rxe3 {[%clk 00:15:58]} {[%emt 00:00:31]} 29. Qxe3 {[%clk
00:08:18]} {[%emt 00:00:08]} Qxd6 {[%clk 00:16:14]} {[%emt 00:00:13]} 30. c7
{[%clk 00:08:42]} {[%emt 00:00:06]} Bc8 {[%clk 00:15:53]} {[%emt 00:00:52]} 31.
Qb3+ {[%clk 00:08:07]} {[%emt 00:01:04]} Kh8 {[%clk 00:16:12]} {[%emt
00:00:11]} 32. Qb8 {[%clk 00:08:30]} {[%emt 00:00:09]} Qe6 {[%clk 00:13:41]}
{[%emt 00:02:59]} 33. Rd1 {[%clk 00:07:13]} {[%emt 00:01:48]} Qe7 {[%clk
00:01:00]} {[%emt 00:13:11]} 34. Qxc8 {[%clk 00:06:39]} {[%emt 00:01:03]} Rd6
{[%clk 00:01:24]} {[%emt 00:00:06]} 35. Rxd6 {[%clk 00:05:29]} {[%emt
00:01:40]} Qxd6 {[%clk 00:01:48]} {[%emt 00:00:06]} 36. Qd8 {[%clk 00:05:27]}
{[%emt 00:00:32]} Qc5 {[%clk 00:02:12]} {[%emt 00:00:06]} 37. c8=Q {[%clk
00:05:43]} {[%emt 00:00:15]} Ng6 {[%emt 00:00:21]} 1-0

[Event "Nové Hrady - Open"]
[Site "Nové Hrady, Czech Republic"]
[Date "2024.08.14"]
[Round "4.9"]
[White "Shivairo, Swegenyi Mark"]
[Black "Valiyev, Adil"]
[Result "1-0"]
[TimeControl "2x90min+30s"]
[WhiteFideId "23745029"]
[BlackFideId "23752246"]
[WhiteElo "1618"]
[BlackElo "1469"]

1. e4 {[%clk 01:30:59]} {[%emt 00:47:23]} e5 {[%clk 01:30:54]} {[%emt
00:00:06]} 2. Nf3 {[%clk 01:31:28]} Nc6 {[%clk 01:31:02]} {[%emt 00:00:22]} 3.
Bc4 {[%clk 01:31:53]} {[%emt 00:00:05]} Nf6 {[%clk 01:31:22]} {[%emt 00:00:10]}
4. d3 {[%clk 01:31:41]} {[%emt 00:00:43]} Bc5 {[%clk 01:31:33]} {[%emt
00:00:18]} 5. Nc3 {[%clk 01:32:03]} {[%emt 00:00:09]} O-O {[%clk 01:31:30]}
{[%emt 00:00:33]} 6. Bg5 {[%clk 01:32:24]} {[%emt 00:00:09]} Be7 {[%clk
01:29:27]} {[%emt 00:02:33]} 7. Bxf6 {[%clk 01:30:56]} {[%emt 00:01:58]} Bxf6
{[%clk 01:29:42]} {[%emt 00:00:15]} 8. Qd2 {[%clk 01:28:56]} {[%emt 00:02:28]}
d6 {[%clk 01:28:41]} {[%emt 00:01:32]} 9. h4 {[%clk 01:20:20]} {[%emt
00:09:06]} Bg4 {[%clk 01:27:35]} {[%emt 00:01:35]} 10. Nh2 {[%clk 01:20:07]}
{[%emt 00:00:43]} Be6 {[%clk 01:27:07]} {[%emt 00:00:59]} 11. g4 {[%clk
01:09:40]} {[%emt 00:10:58]} Bxc4 {[%clk 01:24:57]} {[%emt 00:02:39]} 12. dxc4
{[%clk 01:09:42]} {[%emt 00:00:29]} Bxh4 {[%clk 01:24:42]} {[%emt 00:00:44]} 13.
Nf3 {[%clk 01:09:58]} {[%emt 00:00:15]} Be7 {[%clk 01:24:50]} {[%emt 00:00:22]}
14. Nd5 {[%clk 01:06:37]} {[%emt 00:03:52]} Qd7 {[%clk 01:22:46]} {[%emt
00:02:32]} 15. Nxe7+ {[%clk 01:05:57]} {[%emt 00:01:10]} Nxe7 {[%clk 01:22:18]}
{[%emt 00:00:56]} 16. Qg5 {[%clk 01:05:45]} {[%emt 00:00:43]} Ng6 {[%clk
01:22:13]} {[%emt 00:00:36]} 17. Nh4 {[%clk 00:49:26]} {[%emt 00:16:49]} Qc6
{[%clk 01:22:13]} {[%emt 00:00:31]} 18. f3 {[%clk 00:38:45]} {[%emt 00:11:12]}
Qxc4 {[%clk 01:20:39]} {[%emt 00:02:02]} 19. c3 {[%clk 00:23:34]} {[%emt
00:15:42]} h6 {[%clk 01:19:45]} {[%emt 00:01:23]} 20. Nxg6 {[%clk 00:20:31]}
{[%emt 00:03:33]} fxg6 {[%clk 01:18:49]} {[%emt 00:01:27]} 21. Qe3 {[%clk
00:18:48]} {[%emt 00:02:13]} Rf4 {[%clk 01:17:53]} {[%emt 00:01:25]} 22. Rh3
{[%clk 00:15:09]} {[%emt 00:04:08]} g5 {[%clk 01:15:43]} {[%emt 00:02:42]} 23.
b3 {[%clk 00:13:24]} {[%emt 00:02:15]} Qc6 {[%clk 01:14:40]} {[%emt 00:01:32]}
24. O-O-O {[%clk 00:13:15]} {[%emt 00:00:40]} a5 {[%clk 01:14:25]} {[%emt
00:00:44]} 25. a3 {[%clk 00:11:44]} {[%emt 00:02:01]} a4 {[%clk 01:13:32]}
{[%emt 00:01:23]} 26. b4 {[%clk 00:11:53]} {[%emt 00:00:22]} Qc4 {[%clk
01:12:06]} {[%emt 00:01:56]} 27. Qd3 {[%clk 00:11:30]} {[%emt 00:00:51]} Qa2
{[%clk 01:09:39]} {[%emt 00:02:58]} 28. Qd5+ {[%clk 00:11:37]} {[%emt
00:00:23]} Qxd5 {[%clk 01:09:08]} {[%emt 00:01:01]} 29. Rxd5 {[%clk 00:12:00]}
{[%emt 00:00:08]} Raf8 {[%clk 01:08:39]} {[%emt 00:00:59]} 30. Rd3 {[%clk
00:11:50]} {[%emt 00:00:38]} h5 {[%clk 01:06:20]} {[%emt 00:02:51]} 31. gxh5
{[%clk 00:10:38]} {[%emt 00:01:42]} Rh4 {[%clk 01:05:25]} {[%emt 00:01:24]} 32.
Rxh4 {[%clk 00:10:19]} {[%emt 00:00:49]} gxh4 {[%clk 01:05:50]} {[%emt
00:00:06]} 33. Kd2 {[%clk 00:10:28]} {[%emt 00:00:21]} h3 {[%clk 01:06:03]}
{[%emt 00:00:17]} 34. Ke2 {[%clk 00:10:51]} {[%emt 00:00:07]} Rf4 {[%clk
01:05:41]} {[%emt 00:00:53]} 35. Rd1 {[%clk 00:11:09]} {[%emt 00:00:09]} Rh4
{[%clk 01:05:49]} {[%emt 00:00:24]} 36. Rh1 {[%clk 00:11:14]} {[%emt 00:00:23]}
Rxh5 {[%clk 01:05:50]} {[%emt 00:00:30]} 37. Kf2 {[%clk 00:11:38]} {[%emt
00:00:05]} Kf7 {[%clk 01:04:35]} {[%emt 00:01:47]} 38. Kg3 {[%clk 00:10:32]}
{[%emt 00:01:35]} Kg6 {[%clk 01:04:58]} {[%emt 00:00:06]} 39. Rxh3 {[%clk
00:09:49]} {[%emt 00:01:15]} Rxh3+ {[%clk 01:05:25]} {[%emt 00:00:03]} 40. Kxh3
{[%clk 00:10:13]} {[%emt 00:00:05]} Kg5 {[%clk 01:05:47]} {[%emt 00:00:09]} 41.
Kg3 {[%clk 00:10:33]} {[%emt 00:00:09]} b5 {[%clk 01:06:06]} {[%emt 00:00:11]}
42. Kg2 {[%clk 00:07:32]} {[%emt 00:03:31]} Kf4 {[%clk 01:05:58]} {[%emt
00:00:37]} 43. Kf2 {[%clk 00:07:40]} {[%emt 00:00:24]} g6 {[%clk 01:06:11]}
{[%emt 00:00:16]} 44. Ke2 {[%clk 00:07:43]} {[%emt 00:00:27]} Kg3 {[%clk
01:06:28]} {[%emt 00:00:13]} 45. Ke3 {[%clk 00:07:43]} {[%emt 00:00:31]} Kg2
{[%clk 01:06:48]} {[%emt 00:00:09]} 46. f4 {[%clk 00:07:51]} {[%emt 00:00:23]}
Kg3 {[%emt 00:01:00]} 47. f5 {[%emt 00:00:57]} Kg2 {[%emt 00:00:19]} 1-0

[Event "Nové Hrady - Open"]
[Site "Nové Hrady, Czech Republic"]
[Date "2024.08.14"]
[Round "4.10"]
[White "Garabik, Marek"]
[Black "Schneider, Wolfgang"]
[Result "1-0"]
[TimeControl "2x90min+30s"]
[WhiteFideId "23717742"]
[BlackFideId "1639471"]
[WhiteElo "1916"]
[BlackElo "1542"]

1. e4 {[%clk 01:30:57]} {[%emt 00:00:03]} e5 {[%clk 00:42:22]} {[%emt
00:48:38]} 2. Nf3 {[%clk 01:31:16]} {[%emt 00:00:11]} d6 {[%clk 00:42:24]}
{[%emt 00:00:28]} 3. Bc4 {[%clk 01:31:37]} {[%emt 00:00:09]} h6 {[%clk
00:42:43]} {[%emt 00:00:11]} 4. d3 {[%clk 01:31:44]} {[%emt 00:00:24]} Nf6
{[%clk 00:42:03]} {[%emt 00:01:10]} 5. c3 {[%clk 01:32:05]} {[%emt 00:00:09]}
a6 {[%clk 00:41:47]} {[%emt 00:00:45]} 6. a4 {[%clk 01:32:09]} {[%emt
00:00:26]} Bd7 {[%clk 00:41:51]} {[%emt 00:00:26]} 7. Qb3 {[%clk 01:31:44]}
{[%emt 00:00:55]} Qe7 {[%clk 00:39:56]} {[%emt 00:02:25]} 8. Qxb7 {[%clk
01:31:00]} {[%emt 00:01:15]} Bc6 {[%clk 00:39:18]} {[%emt 00:01:08]} 9. Qc8+
{[%clk 01:31:27]} {[%emt 00:00:03]} Qd8 {[%clk 00:39:00]} {[%emt 00:00:47]} 10.
Bxf7+ {[%clk 01:31:50]} {[%emt 00:00:07]} Kxf7 {[%clk 00:36:58]} {[%emt
00:02:32]} 11. Qxd8 {[%clk 01:32:18]} {[%emt 00:00:02]} Ne8 {[%clk 00:35:12]}
{[%emt 00:02:16]} 12. Qh4 {[%clk 01:31:46]} {[%emt 00:01:02]} Nf6 {[%clk
00:34:34]} {[%emt 00:01:09]} 13. g4 {[%clk 01:31:45]} {[%emt 00:00:30]} Bd7
{[%clk 00:30:55]} {[%emt 00:04:09]} 14. h3 {[%clk 01:31:12]} {[%emt 00:01:04]}
Kg8 {[%clk 00:28:49]} {[%emt 00:02:35]} 15. Nbd2 {[%clk 01:30:31]} {[%emt
00:01:11]} Nc6 {[%clk 00:27:38]} {[%emt 00:01:42]} 16. Nf1 {[%clk 01:29:21]}
{[%emt 00:01:39]} Rb8 {[%clk 00:26:11]} {[%emt 00:01:57]} 17. Ne3 {[%clk
01:29:29]} {[%emt 00:00:22]} Ne7 {[%clk 00:24:12]} {[%emt 00:02:28]} 18. Nf5
{[%clk 01:29:38]} {[%emt 00:00:22]} Ng6 {[%clk 00:22:37]} {[%emt 00:02:05]} 19.
Qg3 {[%clk 01:28:31]} {[%emt 00:01:37]} d5 {[%clk 00:21:33]} {[%emt 00:01:34]}
20. Nxe5 {[%clk 01:27:53]} {[%emt 00:01:08]} Be8 {[%clk 00:20:22]} {[%emt
00:01:41]} 21. Nxg6 {[%clk 01:28:14]} {[%emt 00:00:09]} Bxg6 {[%clk 00:20:06]}
{[%emt 00:00:45]} 22. Qxc7 {[%clk 01:28:02]} {[%emt 00:00:43]} Re8 {[%clk
00:19:54]} {[%emt 00:00:42]} 23. f3 {[%clk 01:24:56]} {[%emt 00:03:37]} dxe4
{[%clk 00:17:17]} {[%emt 00:03:06]} 24. fxe4 {[%clk 01:24:33]} {[%emt
00:00:52]} Bf7 {[%clk 00:15:36]} {[%emt 00:02:12]} 25. O-O {[%clk 01:23:13]}
{[%emt 00:01:51]} Rh7 {[%clk 00:09:43]} {[%emt 00:06:22]} 26. Nxh6+ {[%clk
01:22:09]} {[%emt 00:01:34]} gxh6 {[%clk 00:09:12]} {[%emt 00:01:00]} 27. Rxf6
{[%clk 01:22:27]} {[%emt 00:00:13]} Re7 {[%clk 00:07:43]} {[%emt 00:01:59]} 28.
Qg3 {[%clk 01:20:21]} {[%emt 00:02:36]} Kh8 {[%clk 00:07:10]} {[%emt 00:01:02]}
29. Be3 {[%clk 01:20:21]} {[%emt 00:00:31]} Rb7 {[%clk 00:06:18]} {[%emt
00:01:21]} 30. Raf1 {[%clk 01:20:10]} {[%emt 00:00:42]} h5 {[%clk 00:04:24]}
{[%emt 00:02:24]} 31. Bd4 {[%clk 01:19:59]} {[%emt 00:00:41]} Kg8 {[%clk
00:02:53]} {[%emt 00:02:01]} 32. gxh5+ {[%clk 01:17:03]} {[%emt 00:03:26]} Bg7
{[%clk 00:01:37]} {[%emt 00:01:46]} 33. Rxf7 {[%clk 01:17:09]} {[%emt
00:00:24]} Rxf7 {[%clk 00:01:37]} {[%emt 00:00:29]} 34. Rxf7 {[%clk 01:17:38]}
Kxf7 {[%clk 00:01:41]} {[%emt 00:00:28]} 35. Qg6+ {[%clk 01:17:49]} {[%emt
00:00:19]} Kg8 {[%clk 00:01:37]} {[%emt 00:00:34]} 36. h6 {[%clk 01:17:50]}
{[%emt 00:00:29]} 1-0